Cogmind - Beta 13 *** ADVENTURER MODE // 2024.08.01 @ 13:33:12 Player: Jefffff Result: Destroyed by G-34 Mercenary with Small Laser Performance ------------- Evolutions (0) 0 Regions Visited (1) 200 Robots Destroyed (21) 105 Value Destroyed (352) 352 Prototype IDs (2) 40 Alien Tech Used (0) 0 Bonus (0) 0 TOTAL SCORE: 697 Bonus ------- None Cogmind --------- Core Integrity 0/250 Matter 295/300 Energy 100/100 System Corruption 0% Temperature Cool (12) Movement Core (1400) Ox27 Location -10/Materials Parts ------- > --- POWER (1) -------- (None) > --- PROPULSION (2) --- (None) > --- UTILITY (2) ------ Huge Storage Unit Visual Processing Unit > --- WEAPON (2) ------- Hammer > --- INVENTORY (25) --- Ion Engine Ion Engine Light Ion Engine Light Ion Engine Structural Scanner Structural Scanner Structural Scanner Sensor Array Signal Interpreter Seismic Detector ECM Suite Small Laser Light Assault Rifle Peak State ------------ > --- POWER ------------ Ion Engine > --- PROPULSION ------- Compact Wheel Compact Wheel > --- UTILITY ---------- Huge Storage Unit Visual Processing Unit > --- WEAPON ----------- EM Pulse Gun Hammer > --- INVENTORY -------- Ion Engine Structural Scanner Structural Scanner Structural Scanner Sensor Array Signal Interpreter Seismic Detector ECM Suite Small Laser Light Assault Rifle [Rating: 9] Favorites ----------- Power Ion Engine Engine Ion Engine Propulsion Compact Wheel Leg Aluminum Leg Wheel Compact Wheel Utility Visual Processing Unit Storage Small Storage Unit Processor Visual Processing Unit Weapon EM Pulse Gun Energy Gun EM Pulse Gun Ballistic Gun Light Assault Rifle Special Weapon Mining Laser Impact Weapon Hammer Build | -11 -10 ------- Run | Yrd Mat Slots Evolved . | . . Power . | . . Propulsion . | . . Utility . | . . Weapon . | . . Parts Attached 16 | 6 10 Power 3 | 2 1 Engine 3 | 2 1 Core . | . . Reactor . | . . Propulsion 3 | 2 1 Treads . | . . Leg 1 | . 1 Wheel 2 | 2 . Hover . | . . Flight . | . . Utility 3 | . 3 Device . | . . Storage 2 | . 2 Processor 1 | . 1 Hackware . | . . Protection . | . . Artifact . | . . Weapon 7 | 2 5 Energy Gun 2 | 1 1 Energy Cannon . | . . Ballistic Gun 3 | 1 2 Ballistic Cannon . | . . Launcher . | . . Special Weapon 1 | . 1 Impact Weapon 1 | . 1 Slashing Weapon . | . . Piercing Weapon . | . . Special Melee Weapon . | . . Unidentified Prototypes . | . . Parts Lost 5 | . 5 Power 1 | . 1 Propulsion 3 | . 3 Utility . | . . Weapon 1 | . 1 Highest Loss Streak 2 | . 2 To Critical Strikes . | . . Average Slot Usage (%) 88 | . 88 Engine 10 | . 10 Wheel 26 | . 26 Storage 14 | . 14 Processor 11 | . 11 Energy Gun 10 | . 10 Ballistic Gun 8 | . 8 Special Weapon 1 | . 1 Impact Weapon 4 | . 4 Naked Turns . | . . Heaviest Build 89 | 8 89 Greatest Support 32 | 32 32 Greatest Overweight (x) 8 | . 8 Average Overweight (x) . | . . Largest Inventory Capacity 25 | 5 25 Average Capacity 13 | 5 14 Most Carried 14 | 3 14 Average Carried 8 | 2 8 Final Capacity 25 | 5 25 Final Carried 13 | 3 13 Class Distribution -------------------- 100% | Mutant Dominant Class ---------------- Mutant | -10/Materials Resources | -11 -10 ----------- Run | Yrd Mat Matter Collected 370 | 201 169 Remotely . | . . Salvage Created 663 | . 663 Parts 23 | . 23 Haulers Intercepted 1 | . 1 Recyclers Shooed . | . . Parts Field Recycled . | . . Retrieved Matter . | . . Parts Self-Destructed . | . . Prevented . | . . Kills | -11 -10 ------- Run | Yrd Mat Combat Hostiles Destroyed 12 | . 12 Melee 4 | . 4 Guns 6 | . 6 Classes Destroyed 6 | . 6 Worker 3 | . 3 Hauler 1 | . 1 Recycler 2 | . 2 Watcher 3 | . 3 Swarmer 6 | . 6 Grunt 6 | . 6 Best Kill Streak 5 | . 5 Combat Bots Only 3 | . 3 Max Kills in Single Turn 2 | . 2 Gunslinging . | . . Exploded . | . . Melee 1 | . 1 Uniques/NPCs Destroyed . | . . Combat | -11 -10 -------- Run | Yrd Mat Hostile Shots Fired 94 | . 94 Missed 19 | . 19 Damage Taken 697 | . 697 Core 254 | . 254 Absorbed by Shields . | . . Ignored by Resistances 218 | . 218 Regen/Repaired (Parts) 2 | . 2 Core Remaining (%) 100 | 100 . Volleys Fired 23 | . 23 Largest 2 | . 2 Hottest 100 | . 100 Shots Fired 43 | . 43 Gun 42 | . 42 Cannon . | . . Launcher . | . . Special 1 | . 1 Kinetic 20 | . 20 Thermal 1 | . 1 Explosive . | . . Electromagnetic 22 | . 22 Robot Hit Streak 16 | . 16 Robot Miss Streak 1 | . 1 Penetration Max . | . . Secondary Targets 2 | . 2 Max Gunslinging Chain 1 | . 1 Shots Hit Robots 55 | . 55 Core Hits 15 | . 15 Critical Kills . | . . Critical Parts Destroyed 5 | . 5 Critical Strikes 5 | . 5 Smash 5 | . 5 Melee Attacks 25 | . 25 Impact 25 | . 25 Slashing . | . . Piercing . | . . Sneak Attacks 5 | . 5 Combat Hostiles . | . . Follow-up Attacks . | . . Damage Inflicted 1228 | . 1228 Guns 333 | . 333 Cannons . | . . Explosions 78 | . 78 Melee 817 | . 817 Ramming . | . . Kinetic 101 | . 101 Thermal 78 | . 78 Explosive . | . . Electromagnetic 232 | . 232 Impact 817 | . 817 Slashing . | . . Piercing . | . . Highest Corruption . | . . Average Corruption . | . . Corruption Purged . | . . Corruption Blocked . | . . Overload Shots . | . . Overflow Damage 312 | . 312 Projectiles . | . . Explosions 17 | . 17 Melee 295 | . 295 Knockbacks 3 | . 3 Impact 3 | . 3 Kinetic . | . . Secondary . | . . Self-Inflicted Damage 75 | . 75 Shots 3 | . 3 Rammed . | . . Targets Rammed . | . . Kicked . | . . Crushed . | . . Highest Temperature 44 | . 44 Average Temperature 19 | . 19 Received Heat Transfer 372 | . 372 Siege Activations . | . . Robots Corrupted 1 | . 1 Combat Hostiles 1 | . 1 Parts Fried 13 | . 13 Impact Corruptions 14 | . 14 Robots Melted . | . . Combat Hostiles . | . . Parts Melted . | . . Heat Transferred 100 | . 100 Parts Sabotaged . | . . Parts Stolen . | . . Parts Stripped . | . . Power Chain Reactions 2 | . 2 Alert | -11 -10 ------- Run | Yrd Mat Peak Influence 195 | . 195 Initial . | . . Average 63 | . 67 Maximum Alert Level . | . . Low Security (%) 100 | 100 100 Level 1 . | . . Level 2 . | . . Level 3 . | . . Level 4 . | . . Level 5 . | . . High Security . | . . Max Security . | . . Squads Dispatched 3 | . 3 Investigation 3 | . 3 Extermination . | . . Reinforcement . | . . Assault . | . . Garrison . | . . Intercept . | . . Searches Triggered . | . . Construction Impeded . | . . Haulers Reinforced . | . . Active Scanning Responses . | . . Cargo Convoy Interrupts . | . . Stealth | -11 -10 --------- Run | Yrd Mat Distress Signals . | . . Communications Jammed . | . . Distress Signals . | . . Times Spotted 21 | . 21 Peak Tracking Total 3 | . 3 Tactical Retreats 2 | . 2 Traps | -11 -10 ------- Run | Yrd Mat Traps Triggered . | . . Indirectly . | . . Trap Hack Attempts . | . . Triggered . | . . Disarmed . | . . Reprogrammed . | . . Reused . | . . Traps Extracted . | . . Installed . | . . Triggered . | . . Machines | -11 -10 ---------- Run | Yrd Mat Machines Disabled 1 | . 1 Max in Single Turn 1 | . 1 Machines Repaired . | . . Machines Dismantled . | . . Machines Sabotaged . | . . Overloaded Fab Kills . | . . Hacking | -11 -10 --------- Run | Yrd Mat Machines Accessed 7 | . 7 Terminals 4 | . 4 Fabricators . | . . Repair Stations 1 | . 1 Recycling Units 2 | . 2 Scanalyzers . | . . Garrison Access . | . . Total Hacks 16 | . 16 Successful 10 | . 10 Failed 6 | . 6 Catastrophic 1 | . 1 Database Lockouts . | . . Manual 12 | . 12 Terminals 12 | . 12 Fabricators . | . . Repair Stations 2 | . 2 Recycling Units 2 | . 2 Scanalyzers . | . . Garrison Access . | . . Terminal Hacks 3 | . 3 Prototype ID Bank 1 | . 1 Terminal Index 1 | . 1 Recall Investigation 1 | . 1 Fabricator Hacks . | . . Repair Station Hacks 2 | . 2 Scan Component 1 | . 1 Repair 1 | . 1 Recycling Unit Hacks . | . . Scanalyzer . | . . Garrison Access Hacks . | . . Unauthorized Hacks 5 | . 5 Terminals 3 | . 3 Botnet 3 | . 3 Fabricators . | . . Repair Stations . | . . Recycling Units 2 | . 2 Tunnel 2 | . 2 Scanalyzers . | . . Garrison Access . | . . Data Cores Recovered . | . . Used . | . . Hacking Detections 5 | . 5 Full Trace Events 1 | . 1 Feedback Events . | . . Feedback Blocked . | . . Robot Schematics Acquired . | . . Robots Built . | . . Authchips . | . . Time . | . . Total Robot Build Rating . | . . Part Schematics Acquired . | . . Parts Built . | . . Authchips . | . . Time . | . . Total Part Build Rating . | . . Parts Repaired 1 | . 1 Time 26 | . 26 Parts Recycled . | . . Recycled Matter . | . . Retrieved Matter . | . . Retrieved Components . | . . Parts Scanalyzed . | . . Part Schematics Acquired . | . . Parts Damaged . | . . Bothacking | -11 -10 ------------ Run | Yrd Mat Used RIF Installer . | . . Robots Hacked . | . . Non-combat . | . . Combat . | . . Robot Hacks Applied . | . . Relay Couplers Released . | . . Fabnet Peak Effective % . | . . Robots Rewired . | . . Allies Hacked . | . . Hacks Repelled . | . . Allies | -11 -10 -------- Run | Yrd Mat Total Allies . | . . Largest Group . | . . Highest-Rated Group . | . . Highest-Rated Ally . | . . Total Orders . | . . Ally Attacks . | . . Total Damage . | . . Kills . | . . Allies Corrupted . | . . Allies Melted . | . . Intel | -11 -10 ------- Run | Yrd Mat Robot Analysis Total . | . . Derelict Logs Recovered . | . . Drone Launches . | . . Drone Recoveries . | . . Exploration | -11 -10 ------------- Run | Yrd Mat Turns Passed 1115 | 65 1050 Spaces Moved 753 | 53 700 Core 5 | 5 . Treads . | . . Legs 3 | . 3 Wheels 745 | 48 697 Hover . | . . Flight . | . . Fastest Speed 50 | 50 100 Average Speed 111 | 95 112 Slowest Speed 680 | 100 680 Overloaded Moves . | . . Propulsion Burnouts . | . . Robots Hopped . | . . Cave-ins Triggered . | . . Exploration Rate (%) 45 | 4 87 Regions Visited 1 Branch Regions . Pre-discovered Areas 2 | . 2 Known Exits Taken . | . . Unknown Exits Taken 1 | 1 . Scrap Searched . | . . Spaces Dug 1 | . 1 Terrain Destroyed 9 | . 9 Melee . | . . Projectile 1 | . 1 AOE 8 | . 8 Terrain Rammed . | . . Walls Destroyed . | . . Machines Disabled . | . . Actions | -11 -10 --------- Run | Yrd Mat Total 943 | 66 877 Wait 93 | . 93 Move 752 | 52 700 Hop . | . . Pick Up 26 | 8 18 Fast Attach 1 | . 1 Attach 7 | 5 2 Detach . | . . Swap 8 | 1 7 Drop 8 | . 8 Fire 23 | . 23 Melee 25 | . 25 Ram . | . . Kick . | . . Crush . | . . Escape Stasis . | . . Rewire . | . . Trap . | . . Miscellaneous . | . . Route ------- -11/Scrapyard -10/Materials (discovered 4 exits: [*Mat x2] / [*Min] / [*Sub]) History --------- Turn | Location | Event 13 | -11/Scrapyard | Discovered new exit (range 16) 66 | -11/Scrapyard | Entered Materials 305 | -10/Materials | Build established: Mutant 360 | -10/Materials | Discovered new exit (range 13) 397 | -10/Materials | Repaired Signal Interpreter 477 | -10/Materials | Discovered new exit (range 10) 840 | -10/Materials | Discovered new exit (range 17) 1012 | -10/Materials | Core integrity fell below 50% 1101 | -10/Materials | Core integrity fell below 20% 1104 | -10/Materials | Discovered new exit (range 9) 1116 | -10/Materials | Destroyed by G-34 Mercenary with Small Laser Last Messages --------------- recycling unit. 01058_ K-01 Serf collects debris. 01058_ Acquired Ion Engine. 01059_ R-06 Scavenger inserts Lgt. Assault Rifle into recycling unit. 01062_ K-01 Serf collects debris. 01070_ R-06 Scavenger collects Wheel. 01075_ K-01 Serf collects debris. 01089_ Connecting with Recycling Unit... >>Force(Tunnel) DISCOVERED[-3/Research] 01089_ ALERT: Suspicious activity at Recycling Unit M001. Dispatching Investigation squad. 01096_ Com. Wheel destroyed. 01096_ T-07 Excavator is excavating. 01104_ EXIT=FOUND 01104_ K-01 Serf collects debris. 01111_ U-05 Engineer lays Concrete. 01111_ U-05 Engineer builds a Wall. 01114_ Aluminum Leg destroyed. Map ----- +----------------------------------------------------+ | ##########+# #?????????# | | # T # #?????????## | | # # #??????????? | | # # """ ############ | | # # """ | | # + """ | | # """ # """ | | # """ ### """ #### | | # """ #?# #??# | | # ### #### | | ##########"" """ / | | ?????????#"Y """ ########### | | ?????????#"" """ # """ # | | ?????????### """ # """ ## | | ????######## """ # """ ### | | ????# % % # #?? | | ????# < + """ #?? | | ????# # "R #?? | | ????### % ## """ #?? | | #####?#^ ^ % ## #?? | | ?< ## "" ############## | | ?? "" g"T #?????????# | | ?# "Tgg"" ^ #####?????# | | ?# "" #?????# | | ?# t # #?????# | | ?#u u@ #?????# | | ??### # #?????# | | ????### #?????# | | ??????## ##"Y"# ####?????# | | ???????# ##"""# #????????#### | | ???????# ###### #???????????# | | ???????# #????# #??????###### | | ??????## ##???# #??????# | | ??????# #???# #??????# | | ?????# #??# #??????# """" | | ?????# #??# #??????# """" | | ?????# < #??# #?###### """" | | ?????# #??# #? # """" | | ?????#"" ""#??# # # """" | | ?????##"!!!"##??# # """ # """" | | ??????##"""##???# + """ # """" | | ???????#####????# # """ # | | ????????######### # # | | ????????# #?########### | | ????????# #???????????? | | ????????############???????????? | | ???????????????????????????????? | | ???????????????????????????????? | | ???????????????????????????????? | | | +----------------------------------------------------+ Best States ------------- Heat Dissipation 25 Energy Generation 10 Energy Capacity 250 Matter Stores 300 Matter Capacity 300 Sight Range 18 Terrain Scan Density 10 Resistance: KI 20 Resistance: TH 20 Resistance: EX 20 Resistance: EM 20 Resistance: I 20 Resistance: S 20 Resistance: P 20 Evasion (%) 40 Offensive Hacking 10 Item Schematics ----------------- None Robot Schematics ------------------ None Fabricated ------------ Nothing Alien Tech Used ----------------- None Achievements -------------- None Challenges ------------ None Game ------ Seed ThrusterLatentUnit Manual? 0 Play Time 00:10:40 Cumulative 110.3 hours Start 2024.08.01 @ 13:19:57 End 2024.08.01 @ 13:33:12 Sessions 1 Manual Loads 0 Difficulty Adventurer Special Mode None Game No. 153 Rogue 0 Adventurer 153 Explorer 0 Win Type - Total 0 Types 0/0/0/0/0/0/0/0/0 Lore% 47 Gallery% 52 Achievement% 37 Wizard Run 0 Options --------- Layout 2 ASCII 0 Keyboard 0 Movement Mouse Keybinds 0 Fullscreen 2 Font 48/Terminus Map View 50x44 Zoom Use 0% Tactical HUD 1 Map Filters NONE Filters NONE Steam 1 RUN: ccdacbad-d564-48b6-a0f2-c7a122e42e89